{"text_format":"1","workbook":"xlsx","n_sheets":9,"sheets":["Doucment Allocation","logistics","TP","REQ","ARC","PRO","SEC","MAS","TST"],"not_rendered":{"charts":0,"images":1,"macros":1,"external_links":0,"defined_names":14,"comments":0,"pivot_tables":0},"unopened":[],"bounds":{"document_bytes":16777216,"sheet_cells":100000,"rows_first":2000,"rows_last":500,"rows_between":2000,"halvings":0,"cell_chars":16384,"cell_head_chars":4096},"cells_cut":0,"cells_raw":0,"read":"whole","date_system":"1900"}

{"sheet":"Doucment Allocation","index":0,"n_rows":63,"n_cols":13,"rows_kept":63,"cut":false,"hidden":false,"merged":[]}
["Slot","Room","WG","Doc-Number","Title","Source","Upload Time","WG disposition (Agreed, Noted, Postponed, Withdrawn)","Type (INC, CR, AG, MIN)","Work Item","Rel","Purpose","Notes"]
["Mon-3 (13:30-15:00)",{"$f":"VLOOKUP(A2,logistics!G:I,2,0)","v":"Breakout"},{"$f":"VLOOKUP(A2,logistics!G:I,3,0)","v":"MAS"},"MAS-2015-0600","Agenda MAS#18","Yongjing Zhang (Huawei, Chair)",null,"Agreed","AG"]
["Mon-3 (13:30-15:00)",{"$f":"VLOOKUP(A3,logistics!G:I,2,0)","v":"Breakout"},{"$f":"VLOOKUP(A3,logistics!G:I,3,0)","v":"MAS"},"MAS-2015-0601","MAS#18 Doc allocation","Yongjing Zhang (Huawei, Chair)",null,"Noted","AG"]
["Mon-3 (13:30-15:00)",{"$f":"VLOOKUP(A4,logistics!G:I,2,0)","v":"Breakout"},{"$f":"VLOOKUP(A4,logistics!G:I,3,0)","v":"MAS"},"MAS-2015-0593","TS-0005 Align Resource Names and Attributes","Gemalto N.V","2015-07-10T21:17:53","Noted","CR","TS-0005 (WI-0010)",1,"Decision"]
["Mon-3 (13:30-15:00)",{"$f":"VLOOKUP(A5,logistics!G:I,2,0)","v":"Breakout"},{"$f":"VLOOKUP(A5,logistics!G:I,3,0)","v":"MAS"},"MAS-2015-0593R01","TS-0005 Align Resource Names and Attributes","Gemalto N.V","2015-07-10T21:17:53","Agreed","CR","TS-0005 (WI-0010)",1,"Decision"]
["Mon-3 (13:30-15:00)",{"$f":"VLOOKUP(A6,logistics!G:I,2,0)","v":"Breakout"},{"$f":"VLOOKUP(A6,logistics!G:I,3,0)","v":"MAS"},"MAS-2015-0591","TS-0012-V0_3_0 Base Ontology update after MAS#17.3","NEC (rapporteur)","2015-07-07T10:23:36","Agreed","INC","TS-0012 (WI-0025)",2,"Decision"]
["Mon-3 (13:30-15:00)",{"$f":"VLOOKUP(A7,logistics!G:I,2,0)","v":"Breakout"},{"$f":"VLOOKUP(A7,logistics!G:I,3,0)","v":"MAS"},"MAS-2015-0597","TR-0017 Home Domain Abstract Information Model V0.5.0 Draft Baseline","KETI","2015-07-14T06:38:28","Agreed","INC","TR-0017 (WI-0017)",2,"Decision"]
["Mon-3 (13:30-15:00)",{"$f":"VLOOKUP(A8,logistics!G:I,2,0)","v":"Breakout"},{"$f":"VLOOKUP(A8,logistics!G:I,3,0)","v":"MAS"},"MAS-2015-0596","Proposed modification for Section 7 on mapping of the base ontoloy and external ontologies","Modacom","2015-07-11T12:48:04","Noted","INC","TS-0012 (WI-0025)",2,"Decision","Revision expected.\nKeep original 7.1, add 7.2 for general mapping rules between Base Ontology & external ones."]
["Mon-3 (13:30-15:00)",{"$f":"VLOOKUP(A9,logistics!G:I,2,0)","v":"Breakout"},{"$f":"VLOOKUP(A9,logistics!G:I,3,0)","v":"MAS"},"MAS-2015-0599","HGI activities transfer to oneM2M WG5","Patricia MARTIGNE, ORANGE","2015-07-20T00:36:15","Noted","INC",null,null,null,"Continue discussion on Tue"]
["Tue-1 (08:30-10:00)",{"$f":"VLOOKUP(A10,logistics!G:I,2,0)","v":"Adhoc"},{"$f":"VLOOKUP(A10,logistics!G:I,3,0)","v":"MAS"},"MAS-2015-0592","Modeling M2M app data","FUJITSU","2015-07-12T02:39:38","Draft","INC","TS-0002 (WI-0001)",2,"Discussion"]
["Tue-1 (08:30-10:00)",{"$f":"VLOOKUP(A11,logistics!G:I,2,0)","v":"Adhoc"},{"$f":"VLOOKUP(A11,logistics!G:I,3,0)","v":"MAS"},"MAS-2015-0592R01","Modeling M2M app data","FUJITSU","2015-07-20T16:17:14","Draft","INC","TS-0002 (WI-0001)",2,"Discussion","Scenarios/assumptions/intention clarified. Proposed requirements need to be revised accordingly."]
["Tue-1 (08:30-10:00)",{"$f":"VLOOKUP(A12,logistics!G:I,2,0)","v":"Adhoc"},{"$f":"VLOOKUP(A12,logistics!G:I,3,0)","v":"MAS"},"MAS-2015-0598","Semantic_Filtering_and_Discovery","NEC","2015-07-14T14:58:45","Draft","CR","TR-0007 (WI-0005)",2,"Decision","filtering based on values need FFS.\nCorresponding requirement should be covered by this Meeting."]
["Tue-4 (15:30-17:00)",{"$f":"VLOOKUP(A13,logistics!G:I,2,0)","v":"Adhoc"},{"$f":"VLOOKUP(A13,logistics!G:I,3,0)","v":"MAS"},"MAS-2015-0596R01","Proposed modification for Section 7 on mapping of the base ontoloy and external ontologies","Modacom","2015-07-21T14:34:37","Draft","INC","TS-0012 (WI-0025)",2,"Decision","Revision needed."]
["Tue-4 (15:30-17:00)",{"$f":"VLOOKUP(A14,logistics!G:I,2,0)","v":"Adhoc"},{"$f":"VLOOKUP(A14,logistics!G:I,3,0)","v":"MAS"},"TP-2015-0745","WI-0017-Home_Domain_Enablement_normative_work","LG Electronics","2015-07-13T09:38:07","Draft","CR",null,null,null,"Still concerns of opening a new TS, or too early to start the normative work before TR-17 is mature."]
["Wed-1 (08:30-10:00)",{"$f":"VLOOKUP(A15,logistics!G:I,2,0)","v":"Main"},{"$f":"VLOOKUP(A15,logistics!G:I,3,0)","v":"MAS/ARC"},"ARC-2015-1947","Multiplicity correction to objectAttribute R1","Yongjing Zhang (Huawei)","2015-07-08T03:57:43","Agreed","CR","TS-0001 (WI-0002)",1,"Decision"]
["Wed-1 (08:30-10:00)",{"$f":"VLOOKUP(A16,logistics!G:I,2,0)","v":"Main"},{"$f":"VLOOKUP(A16,logistics!G:I,3,0)","v":"MAS/ARC"},"ARC-2015-1948","Multiplicity correction to objectAttribute R2","Yongjing Zhang (Huawei)","2015-07-08T03:57:56","Agreed","CR","TS-0001 (WI-0002)",2,"Decision","Additional CR is expected to align with the naming convention.\nStage 3 xsd impact need to be checked."]
["Wed-1 (08:30-10:00)",{"$f":"VLOOKUP(A17,logistics!G:I,2,0)","v":"Main"},{"$f":"VLOOKUP(A17,logistics!G:I,3,0)","v":"MAS/ARC"},"ARC-2015-1970","Group update semantics","InterDigital","2015-07-12T19:29:14","Noted","CR","TS-0001 (WI-0002)",2,"Decision"]
["Wed-1 (08:30-10:00)",{"$f":"VLOOKUP(A18,logistics!G:I,2,0)","v":"Main"},{"$f":"VLOOKUP(A18,logistics!G:I,3,0)","v":"MAS/ARC"},"ARC-2015-1970R01","Group update semantics","InterDigital","2015-07-12T19:29:14","Noted","CR","TS-0001 (WI-0002)",2,"Decision","More concrete use cases may help for justification.\nRevision expected."]
["Wed-1 (08:30-10:00)",{"$f":"VLOOKUP(A19,logistics!G:I,2,0)","v":"Main"},{"$f":"VLOOKUP(A19,logistics!G:I,3,0)","v":"MAS/ARC"},"ARC-2015-1971","Node update semantics","InterDigital","2015-07-12T19:29:28","Noted","CR","TS-0001 (WI-0002)",2,"Decision"]
["Wed-1 (08:30-10:00)",{"$f":"VLOOKUP(A20,logistics!G:I,2,0)","v":"Main"},{"$f":"VLOOKUP(A20,logistics!G:I,3,0)","v":"MAS/ARC"},"ARC-2015-1971R01","Node update semantics","InterDigital","2015-07-12T19:29:28","Noted","CR","TS-0001 (WI-0002)",2,"Decision","Revision expected with better understanding about the functionalities that to be semantically represented by  <node>"]
["Wed-1 (08:30-10:00)",{"$f":"VLOOKUP(A21,logistics!G:I,2,0)","v":"Main"},{"$f":"VLOOKUP(A21,logistics!G:I,3,0)","v":"MAS/ARC"},"ARC-2015-2019","SemanticFilterCriteria","NEC","2015-07-13T13:22:22","Agreed","CR","TS-0001 (WI-0002)",2,"Decision"]
["Wed-2 (10:30-12:00)",{"$f":"VLOOKUP(A22,logistics!G:I,2,0)","v":"Adhoc"},{"$f":"VLOOKUP(A22,logistics!G:I,3,0)","v":"MAS"},"MAS-2015-0599R01","HGI activities transfer to oneM2M WG5","Patricia MARTIGNE, ORANGE","2015-07-20T00:36:15","Draft","INC",null,null,null,"1. prefer to integrate HGI into our current work rather than maintain as is. \n2. SDT relationship with Home domain abstract info model?\n3. SDT relationship with Base ontology? - long term consideration\n\njoint call proposed on Aug 31 to: 1) exchange opinions on how to transit HGI into oneM2M;2) education of HGI SDT3.0 and RWD036.\n\nR02 is used as MAS suggestion to TP."]
["Wed-2 (10:30-12:00)",{"$f":"VLOOKUP(A23,logistics!G:I,2,0)","v":"Adhoc"},{"$f":"VLOOKUP(A23,logistics!G:I,3,0)","v":"MAS"},"MAS-2015-0605","Proposal for a new WI","Patricia Martigne (Orange)","2015-07-21T19:50:45","Draft","INC",null,null,null,"Title/scope is reivsed so as to not  only tracking but also technical study.\nSupporters added.\nR01 to be submitted to interim TP."]
["Wed-2 (10:30-12:00)",{"$f":"VLOOKUP(A24,logistics!G:I,2,0)","v":"Adhoc"},{"$f":"VLOOKUP(A24,logistics!G:I,3,0)","v":"MAS"},"MAS-2015-0595R03","TS-0012 Update on Base Ontology and Mapping to oneM2M Resources","NEC","2015-07-21T14:52:02","Draft","INC","TS-0012 (WI-0025)",2,"Decision","Continue discussion in afternoon."]
["Wed-3 (13:30-15:00)",{"$f":"VLOOKUP(A25,logistics!G:I,2,0)","v":"Main"},{"$f":"VLOOKUP(A25,logistics!G:I,3,0)","v":"MAS"},"MAS-2015-0596R02","Proposed modification for Section 7 on mapping of the base ontoloy and external ontologies","Modacom","2015-07-11T12:48:04","Noted","INC","TS-0012 (WI-0025)",2,"Decision"]
["Wed-3 (13:30-15:00)",{"$f":"VLOOKUP(A26,logistics!G:I,2,0)","v":"Main"},{"$f":"VLOOKUP(A26,logistics!G:I,3,0)","v":"MAS"},"MAS-2015-0596R03","Proposed modification for Section 7 on mapping of the base ontoloy and external ontologies","Modacom","2015-07-11T12:48:04","Agreed","INC","TS-0012 (WI-0025)",2,"Decision"]
["Wed-3 (13:30-15:00)",{"$f":"VLOOKUP(A27,logistics!G:I,2,0)","v":"Main"},{"$f":"VLOOKUP(A27,logistics!G:I,3,0)","v":"MAS"},"MAS-2015-0598","Semantic_Filtering_and_Discovery","NEC","2015-07-14T14:58:45","Agreed","CR","TR-0007 (WI-0005)",2,"Decision"]
["Wed-3 (13:30-15:00)",{"$f":"VLOOKUP(A28,logistics!G:I,2,0)","v":"Main"},{"$f":"VLOOKUP(A28,logistics!G:I,3,0)","v":"MAS"},"MAS-2015-0595R03","TS-0012 Update on Base Ontology and Mapping to oneM2M Resources","NEC","2015-07-21T14:52:02","Draft","INC","TS-0012 (WI-0025)",2,"Decision","Keep Open. offline discussion needed on the class of 'command' and 'semantic input/output'"]
["Wed-3 (13:30-15:00)",{"$f":"VLOOKUP(A29,logistics!G:I,2,0)","v":"Main"},{"$f":"VLOOKUP(A29,logistics!G:I,3,0)","v":"MAS"},"MAS-2015-0603","Ontology Resource Discussion","InterDigital","2015-07-20T16:39:31","Draft","INC","TS-0001 (WI-0002)",2,"Discussion","Continue discussion in adhoc on Thu."]
["Wed-3 (13:30-15:00)",{"$f":"VLOOKUP(A30,logistics!G:I,2,0)","v":"Main"},{"$f":"VLOOKUP(A30,logistics!G:I,3,0)","v":"MAS"},"TP-2015-0745R01","WI-0017-Home_Domain_Enablement_normative_work","LG Electronics","2015-07-13T09:38:07","Draft","CR",null,null,null,"Agreed to go for Interim TP decision."]
[]
["Thu-1 (08:30-10:00)",{"$f":"VLOOKUP(A32,logistics!G:I,2,0)","v":"Main"},{"$f":"VLOOKUP(A32,logistics!G:I,3,0)","v":"MAS"},"MAS-2015-0595R03","TS-0012 Update on Base Ontology and Mapping to oneM2M Resources","NEC","2015-07-21T14:52:02","Draft","INC","TS-0012 (WI-0025)",2,"Decision"]
[null,{"$f":"VLOOKUP(A33,logistics!G:I,2,0)","v":{"$error":"#N/A"}},{"$f":"VLOOKUP(A33,logistics!G:I,3,0)","v":{"$error":"#N/A"}},"MAS-2015-0604","SemanticFilteringUsingDistributedSemanticDescriptors","NEC","2015-07-21T12:18:37","Draft","CR","TR-0007 (WI-0005)",2,"Decision"]
[null,{"$f":"VLOOKUP(A34,logistics!G:I,2,0)","v":{"$error":"#N/A"}},{"$f":"VLOOKUP(A34,logistics!G:I,3,0)","v":{"$error":"#N/A"}}]
[null,{"$f":"VLOOKUP(A35,logistics!G:I,2,0)","v":{"$error":"#N/A"}},{"$f":"VLOOKUP(A35,logistics!G:I,3,0)","v":{"$error":"#N/A"}}]
["Thu-2 (10:30-12:00)",{"$f":"VLOOKUP(A36,logistics!G:I,2,0)","v":"Main"},{"$f":"VLOOKUP(A36,logistics!G:I,3,0)","v":"ARC/MAS/REQ"},"REQ-2015-0593","Requirement for collecting data from M2M device","FUJITSU","2015-07-12T02:53:39","Draft","CR","TS-0002 (WI-0001)",2,"Decision"]
[null,{"$f":"VLOOKUP(A37,logistics!G:I,2,0)","v":{"$error":"#N/A"}},{"$f":"VLOOKUP(A37,logistics!G:I,3,0)","v":{"$error":"#N/A"}},"ARC-2015-2027","appObj_new_resource_type","LG Electronics","2015-07-14T09:47:15","Draft","CR","TS-0001 (WI-0002)",2,"Decision"]
[null,{"$f":"VLOOKUP(A38,logistics!G:I,2,0)","v":{"$error":"#N/A"}},{"$f":"VLOOKUP(A38,logistics!G:I,3,0)","v":{"$error":"#N/A"}},"ARC-2015-1970R02","Group update semantics","InterDigital","2015-07-12T19:29:14","Draft","CR","TS-0001 (WI-0002)",2,"Decision"]
[null,{"$f":"VLOOKUP(A39,logistics!G:I,2,0)","v":{"$error":"#N/A"}},{"$f":"VLOOKUP(A39,logistics!G:I,3,0)","v":{"$error":"#N/A"}},"ARC-2015-1971R02","Node update semantics","InterDigital","2015-07-12T19:29:28","Draft","CR","TS-0001 (WI-0002)",2,"Decision"]
[null,{"$f":"VLOOKUP(A40,logistics!G:I,2,0)","v":{"$error":"#N/A"}},{"$f":"VLOOKUP(A40,logistics!G:I,3,0)","v":{"$error":"#N/A"}},"ARC-2015-2044","Multiplicity Naming Convention Alignment R1","Huawei","2015-07-22T20:33:33","Draft","CR","TS-0001 (WI-0002)",1,"Decision"]
[null,{"$f":"VLOOKUP(A41,logistics!G:I,2,0)","v":{"$error":"#N/A"}},{"$f":"VLOOKUP(A41,logistics!G:I,3,0)","v":{"$error":"#N/A"}},"ARC-2015-2045","Multiplicity Naming Convention Alignment R2","Huawei",42207.856921296298,"Draft","CR","TS-0001 (WI-0002)",2,"Decision"]
[]
["Thu-3 (13:30-15:00)",{"$f":"VLOOKUP(A43,logistics!G:I,2,0)","v":"Adhoc"},{"$f":"VLOOKUP(A43,logistics!G:I,3,0)","v":"MAS"},"MAS-2015-0603","Ontology Resource Discussion","InterDigital","2015-07-20T16:39:31","Draft","INC","TS-0001 (WI-0002)",2,"Discussion"]
[null,{"$f":"VLOOKUP(A44,logistics!G:I,2,0)","v":{"$error":"#N/A"}},{"$f":"VLOOKUP(A44,logistics!G:I,3,0)","v":{"$error":"#N/A"}}]
[null,{"$f":"VLOOKUP(A45,logistics!G:I,2,0)","v":{"$error":"#N/A"}},{"$f":"VLOOKUP(A45,logistics!G:I,3,0)","v":{"$error":"#N/A"}}]
[null,{"$f":"VLOOKUP(A46,logistics!G:I,2,0)","v":{"$error":"#N/A"}},{"$f":"VLOOKUP(A46,logistics!G:I,3,0)","v":{"$error":"#N/A"}}]
["Thu-5 (17:00-18:30)",{"$f":"VLOOKUP(A47,logistics!G:I,2,0)","v":"Main"},{"$f":"VLOOKUP(A47,logistics!G:I,3,0)","v":"MAS"},"<TBD>"]
[null,{"$f":"VLOOKUP(A48,logistics!G:I,2,0)","v":{"$error":"#N/A"}},{"$f":"VLOOKUP(A48,logistics!G:I,3,0)","v":{"$error":"#N/A"}}]
[null,{"$f":"VLOOKUP(A49,logistics!G:I,2,0)","v":{"$error":"#N/A"}},{"$f":"VLOOKUP(A49,logistics!G:I,3,0)","v":{"$error":"#N/A"}}]
["Fri-1 (08:30-10:00)",{"$f":"VLOOKUP(A50,logistics!G:I,2,0)","v":"Adhoc"},{"$f":"VLOOKUP(A50,logistics!G:I,3,0)","v":"MAS"},"<TBD>"]
[null,{"$f":"VLOOKUP(A51,logistics!G:I,2,0)","v":{"$error":"#N/A"}},{"$f":"VLOOKUP(A51,logistics!G:I,3,0)","v":{"$error":"#N/A"}}]
[null,{"$f":"VLOOKUP(A52,logistics!G:I,2,0)","v":{"$error":"#N/A"}},{"$f":"VLOOKUP(A52,logistics!G:I,3,0)","v":{"$error":"#N/A"}}]
["Fri-2 (10:30-12:00)",{"$f":"VLOOKUP(A53,logistics!G:I,2,0)","v":"Breakout"},{"$f":"VLOOKUP(A53,logistics!G:I,3,0)","v":"MAS"},"<CLOSE>"]
[null,{"$f":"VLOOKUP(A54,logistics!G:I,2,0)","v":{"$error":"#N/A"}},{"$f":"VLOOKUP(A54,logistics!G:I,3,0)","v":{"$error":"#N/A"}},"MAS-2015-0594","Discussions on semantic description  rules","China Unicom","2015-07-10T15:44:34","Postponed","INC","TS-0012 (WI-0025)",2,"Discussion","Postponed to next TP"]
[null,{"$f":"VLOOKUP(A55,logistics!G:I,2,0)","v":{"$error":"#N/A"}},{"$f":"VLOOKUP(A55,logistics!G:I,3,0)","v":{"$error":"#N/A"}},"MAS-2015-0592","Modeling M2M app data","FUJITSU","2015-07-12T02:39:38","Noted","INC","TS-0002 (WI-0001)",2,"Discussion"]
[null,{"$f":"VLOOKUP(A56,logistics!G:I,2,0)","v":{"$error":"#N/A"}},{"$f":"VLOOKUP(A56,logistics!G:I,3,0)","v":{"$error":"#N/A"}},"MAS-2015-0592R01","Modeling M2M app data","FUJITSU","2015-07-20T16:17:14","Noted","INC","TS-0002 (WI-0001)",2,"Discussion"]
[null,{"$f":"VLOOKUP(A57,logistics!G:I,2,0)","v":{"$error":"#N/A"}},{"$f":"VLOOKUP(A57,logistics!G:I,3,0)","v":{"$error":"#N/A"}},"MAS-2015-0595","TS-0012 Update on Base Ontology and Mapping to oneM2M Resources","NEC","2015-07-13T15:25:39","Noted","INC","TS-0012 (WI-0025)",2,"Decision"]
[null,{"$f":"VLOOKUP(A58,logistics!G:I,2,0)","v":{"$error":"#N/A"}},{"$f":"VLOOKUP(A58,logistics!G:I,3,0)","v":{"$error":"#N/A"}},"MAS-2015-0595R01","TS-0012 Update on Base Ontology and Mapping to oneM2M Resources","NEC","2015-07-21T14:52:02","Noted","INC","TS-0012 (WI-0025)",2,"Decision"]
[null,{"$f":"VLOOKUP(A59,logistics!G:I,2,0)","v":{"$error":"#N/A"}},{"$f":"VLOOKUP(A59,logistics!G:I,3,0)","v":{"$error":"#N/A"}},"MAS-2015-0595R02","TS-0012 Update on Base Ontology and Mapping to oneM2M Resources","NEC","2015-07-21T20:44:15","Noted","INC","TS-0012 (WI-0025)",2,"Decision"]
[null,{"$f":"VLOOKUP(A60,logistics!G:I,2,0)","v":{"$error":"#N/A"}},{"$f":"VLOOKUP(A60,logistics!G:I,3,0)","v":{"$error":"#N/A"}},"MAS-2015-0595R03","TS-0012 Update on Base Ontology and Mapping to oneM2M Resources","NEC","2015-07-21T14:52:02","Draft","INC","TS-0012 (WI-0025)",2,"Decision"]
[null,{"$f":"VLOOKUP(A61,logistics!G:I,2,0)","v":{"$error":"#N/A"}},{"$f":"VLOOKUP(A61,logistics!G:I,3,0)","v":{"$error":"#N/A"}}]
[null,{"$f":"VLOOKUP(A62,logistics!G:I,2,0)","v":{"$error":"#N/A"}},{"$f":"VLOOKUP(A62,logistics!G:I,3,0)","v":{"$error":"#N/A"}}]
[null,{"$f":"VLOOKUP(A63,logistics!G:I,2,0)","v":{"$error":"#N/A"}},{"$f":"VLOOKUP(A63,logistics!G:I,3,0)","v":{"$error":"#N/A"}}]

{"sheet":"logistics","index":1,"n_rows":25,"n_cols":12,"rows_kept":25,"cut":false,"hidden":false,"merged":[]}
["WeekDay","SlotTime","Day","Slot","Time","AllSlots","MAS Slots","Rooms","WGs","WIs","Short Name","Deadline (GMT)"]
["Mon","08:30–10:30","Mon",1,"08:30–10:30",{"$f":"CONCATENATE(C2,\"-\",D2,\" (\",E2,\")\")","v":"Mon-1 (08:30–10:30)"},null,null,null,"TR-0001 (WI-0015)","Use Case Continuation","2015-07-13T13:00:00"]
["Tue","10:30-11:00","Mon",2,"11:00-12:30",{"$f":"CONCATENATE(C3,\"-\",D3,\" (\",E3,\")\")","v":"Mon-2 (11:00-12:30)"},null,null,null,"TR-0007 (WI-0005)","Semantic Study"]
["Wed","11:00-12:30","Mon",3,"13:30-15:00","Mon-3 (13:30-15:00)","Mon-3 (13:30-15:00)","Breakout","MAS","TR-0014 (WI-0018)","oneM2M AllJoyn Interworking"]
["Thu","12:30-13:30","Mon",4,"16:30-17:00",{"$f":"CONCATENATE(C5,\"-\",D5,\" (\",E5,\")\")","v":"Mon-4 (16:30-17:00)"},null,null,null,"TR-0017 (WI-0017)","Home Domain Abstract Information Model"]
["Fri","13:30-15:00","Mon",5,"17:00-20:00","Mon-5 (17:00-20:00)",null,null,null,"TS-0001 (WI-0002)","Architecture"]
[null,"15:00-16:30","Tue",1,"08:30-10:00","Tue-1 (08:30-10:00)","Tue-1 (08:30-10:00)","Adhoc","MAS","TS-0002 (WI-0001)","Requirement"]
[null,"16:30-17:00","Tue",2,"10:30-12:00","Tue-2 (10:30-12:00)",null,null,null,"TS-0004 (WI-0009)","Protocol Core"]
[null,"17:00-20:00","Tue",3,"13:30-15:00","Tue-3 (13:30-15:00)",null,null,null,"TS-0005 (WI-0010)","OMA Mapping"]
[null,null,"Tue",4,"15:30-17:00","Tue-4 (15:30-17:00)","Tue-4 (15:30-17:00)","Adhoc","MAS","TS-0006 (WI-0010)","BBF Mapping"]
[null,"08:30-10:00","Tue",5,"17:00-18:30","Tue-5 (17:00-18:30)",null,null,null,"TS-0007 (WI-0011)","SOA Architecture"]
[null,"10:00-10:30","Wed",1,"08:30-10:00","Wed-1 (08:30-10:00)","Wed-1 (08:30-10:00)","Main","MAS/ARC","TS-0012 (WI-0025)","oneM2M Base Ontology"]
[null,"10:30-12:00","Wed",2,"10:30-12:00","Wed-2 (10:30-12:00)","Wed-2 (10:30-12:00)","Adhoc","MAS","TS-0014 (WI-0024)","LWM2M_Interworking"]
[null,"12:00-13:30","Wed",3,"13:30-15:00","Wed-3 (13:30-15:00)","Wed-3 (13:30-15:00)","Main","MAS"]
[null,"13:30-15:00","Wed",4,"15:30-17:00","Wed-4 (15:30-17:00)"]
[null,"15:00-15:30","Wed",5,"17:00-18:30","Wed-5 (17:00-18:30)"]
[null,"15:30-17:00","Thu",1,"08:30-10:00","Thu-1 (08:30-10:00)","Thu-1 (08:30-10:00)","Main","MAS"]
[null,"17:00-18:30","Thu",2,"10:30-12:00","Thu-2 (10:30-12:00)","Thu-2 (10:30-12:00)","Main","ARC/MAS/REQ"]
[null,null,"Thu",3,"13:30-15:00","Thu-3 (13:30-15:00)","Thu-3 (13:30-15:00)","Adhoc","MAS"]
[null,null,"Thu",4,"15:30-17:00","Thu-4 (15:30-17:00)"]
[null,null,"Thu",5,"17:00-18:30","Thu-5 (17:00-18:30)","Thu-5 (17:00-18:30)","Main","MAS"]
[null,null,"Fri",1,"08:30-10:00","Fri-1 (08:30-10:00)","Fri-1 (08:30-10:00)","Adhoc","MAS"]
[null,null,"Fri",2,"10:30-12:00","Fri-2 (10:30-12:00)","Fri-2 (10:30-12:00)","Breakout","MAS"]
[null,null,"Fri",3,"13:30-15:00","Fri-3 (13:30-15:00)"]
[null,null,"Fri",4,"15:30-17:00","Fri-4 (15:30-17:00)"]

{"sheet":"TP","index":2,"n_rows":51,"n_cols":8,"rows_kept":51,"cut":false,"hidden":false,"merged":[]}
["SHORT DOC NB","SHORTNAME","SOURCE","UPLOADED","STATUS","DOC TYPE","VERS","MEETING"]
["TP-2015-0668","TP#18_Philadelphia_Meeting_Notice","Nicole Butler, ATIS","2015-04-02T19:42:52","Draft","INV",null,"TP 18"]
["TP-2015-0668R01","TP#18_Philadelphia_Meeting_Notice","Nicole Butler, ATIS","2015-04-08T17:57:15","Draft","INV",null,"TP 18"]
["TP-2015-0730","Voting List for TP18","Karen Hughes, Secretary","2015-06-01T15:44:35","Draft","INC",null,"TP 18"]
["TP-2015-0732","LS on 3GPP Rel-13 MTC features for service capability exposure","3GPP TSG-SA WG2","2015-06-02T15:55:27","Draft","LS",null,"TP 18"]
["TP-2015-0731","Invitation to TP19_Sophia-Antipolis","ETSI","2015-06-02T15:59:50","Draft","INV",null,"TP 18"]
["TP-2015-0733","Reply LS on Extension of 3GPP Service-Information AVP","3GPP TSG-SA WG5","2015-06-03T09:30:27","Draft","LS",null,"TP 18"]
["TP-2015-0734","TP18 Social Event Invitation","ATIS and InterDigital","2015-06-11T23:21:37","Draft","INV",null,"TP 18"]
["TP-2015-0735","Application ID Input","IFAST, ILS, Telxxis (TIA TR-50)","2015-06-24T21:04:21","Draft","INC",null,"TP 18"]
["TP-2015-0737","Draft MoW 1.4.0","MoW(Enrico Scarrone)","2015-07-07T10:05:14","Draft","STR",null,"TP 18"]
["TP-2015-0738","MoW_M&P_Report_at_TP18","MoW convenor  (Enrico Scarrone)","2015-07-07T10:23:00","Draft","STR",null,"TP 18"]
["TP-2015-0739","WI-0018_CR_for_Rapporture_change","LG Electronics","2015-07-08T05:26:00","Approved","CR",null,"TP 18"]
["TP-2015-0740","LSout 3GPP SA5 Code Point","Ericsson","2015-07-09T16:39:15","Draft","LS",null,"TP 18"]
["TP-2015-0742","WI-00xx-Application developer guide","ETSI","2015-07-10T16:36:51","Draft","INC",null,"TP 18"]
["TP-2015-0743","Connecting ISO TC204 (ITS)","Tseng Infoserv, LLC","2015-07-12T12:35:13","Draft","INC",null,"TP 18"]
["TP-2015-0744","WI-0018_AllJoyn_interworking_normative_work","LG Electronics","2015-07-13T09:36:42","Draft","CR",null,"TP 18"]
["TP-2015-0745","WI-0017-Home_Domain_Enablement_normative_work","LG Electronics","2015-07-13T09:38:07","Draft","CR",null,"TP 18"]
["TP-2015-0746","CR Pack TS0004 V1.2.1 Release 1","WG3/PRO Chairman","2015-07-13T18:24:37","Draft","INC",null,"TP 18"]
["TP-2015-0747","CR Pack TS0009 Release 2","WG3/PRO Chairman","2015-07-13T18:26:39","Draft","CR",null,"TP 18"]
["TP-2015-0748","Introduction of GlobalPlatform as partner type 2","GlobalPlatform","2015-07-14T10:01:47","Draft","INC",null,"TP 18"]
["TP-2015-0736","oneM2M based implementations","JaeSeung Song (KETI)","2015-07-14T20:21:05","Draft","INC",null,"TP 18"]
["TP-2015-0741","Weekly Schedule TP18","Karen Hughes, Secretariat","2015-07-15T09:40:39","Draft","INC",null,"TP 18"]
["TP-2015-0749","LS on Exposure of Network Capabilities to M2M","OMA ARC WG","2015-07-15T09:47:02","Draft","LS",null,"TP 18"]
["TP-2015-0750","Agenda TP18","TP Chair","2015-07-15T10:45:48","Draft","AG",null,"TP 18"]
["TP-2015-0736R01","oneM2M based implementations","JaeSeung Song (KETI)","2015-07-15T11:18:15","Draft","INC",null,"TP 18"]
["TP-2015-0741R01","Weekly Schedule TP18","Karen Hughes, Secretariat","2015-07-16T08:39:32","Draft","INC",null,"TP 18"]
["TP-2015-0741R02","Weekly Schedule TP18","Karen Hughes, Secretariat","2015-07-16T15:15:09","Draft","INC",null,"TP 18"]
["TP-2015-0750R01","Agenda TP18","TP Chair","2015-07-17T10:06:17","Draft","AG",null,"TP 18"]
["TP-2015-0741R03","Weekly Schedule TP18","Karen Hughes, Secretariat","2015-07-17T14:24:58","Draft","INC",null,"TP 18"]
["TP-2015-0751","AppID CR","IFAST, Telit","2015-07-18T01:00:23","Draft","INC",null,"TP 18"]
["TP-2015-0752","HGI to conclude its work by 2016","HGI","2015-07-19T19:17:21","Draft","INC",null,"TP 18"]
["TP-2015-0750R02","Agenda TP18","TP Chair","2015-07-19T19:21:25","Draft","AG",null,"TP 18"]
["TP-2015-0753","Actions status from TP17","Karen Hughes, Secretariat","2015-07-19T20:15:51","Draft","INC",null,"TP 18"]
["TP-2015-0750R03","Agenda TP18","TP Chair","2015-07-19T21:13:30","Draft","AG",null,"TP 18"]
["TP-2015-0750R04","Agenda TP18","TP Chair","2015-07-20T13:27:21","Draft","AG",null,"TP 18"]
["TP-2015-0741R04","Weekly Schedule TP18","Karen Hughes, Secretariat","2015-07-20T13:33:33","Draft","INC",null,"TP 18"]
["TP-2015-0754","LWM2M Interworking for OIC/oneM2M Workshop","ALU, Gemalto N.V","2015-07-20T16:32:37","Draft","INC",null,"TP 18"]
["TP-2015-0754R01","Presentation of LWM2M Interworking for OIC/oneM2M Workshop","ALU, Gemalto N.V","2015-07-20T16:51:38","Draft","INC",null,"TP 18"]
["TP-2015-0755","AllSeen interworking introduction for OIC-oneM2M workshop","LG Electronics, Qualcomm","2015-07-20T17:12:50","Draft","INC",null,"TP 18"]
["TP-2015-0756","Showcase Tokyo Report","KDDI","2015-07-20T19:55:56","Draft","MIN",null,"TP 18"]
["TP-2015-0757","Agenda OIC/oneM2M workshop July 20th 2015","Omar Elloumi (ALU), TP Chair","2015-07-20T20:07:01","Draft","AG",null,"TP 18"]
["TP-2015-0758","OIC input to joint OIC / oneM2M workshop","Omar Elloumi (ALU), TP Chair","2015-07-20T21:54:17","Draft","INC",null,"TP 18"]
["TP-2015-0759","oneM2M Presentation for OIC Workshop","Nicolas Damour, WG2 Chairman","2015-07-20T22:04:36","Draft","INC",null,"TP 18"]
["TP-2015-0758R01","OIC input to joint OIC / oneM2M workshop","Omar Elloumi (ALU), TP Chair","2015-07-20T22:18:16","Draft","INC",null,"TP 18"]
["TP-2015-0760","OneM2M interworking approach overview","Telecom Italia","2015-07-20T22:32:17","Draft","INC",null,"TP 18"]
["TP-2015-0744R01","WI-0018_AllJoyn_interworking_normative_work","LG Electronics","2015-07-21T08:59:06","Draft","CR",null,"TP 18"]
["TP-2015-0757R01","Agenda OIC/oneM2M workshop July 20th 2015","Omar Elloumi (ALU), TP Chair","2015-07-21T11:35:39","Draft","AG",null,"TP 18"]
["TP-2015-0740R01","LSout 3GPP SA5 Code Point","Ericsson","2015-07-21T13:54:36","Draft","LS",null,"TP 18"]
["TP-2015-0741R05","Weekly Schedule TP18","Karen Hughes, Secretariat","2015-07-21T15:25:15","Draft","INC",null,"TP 18"]
["TST-2015-0148","Minutes TST TP18","secretary",null,"Draft","MIN",null,"TP 18"]
["MAS-2015-0602","Minutes MAS TP18","secretary",null,"Draft","MIN",null,"TP 18"]

{"sheet":"REQ","index":3,"n_rows":36,"n_cols":8,"rows_kept":36,"cut":false,"hidden":false,"merged":[]}
["SHORT DOC NB","SHORTNAME","SOURCE","UPLOADED","STATUS","DOC TYPE","VERS","MEETING"]
["REQ-2015-0589R01","Usecase on vehicle data wipe service","TOYOTA ITC","2015-07-07T11:35:50","Draft","INC",null,"REQ 18"]
["REQ-2015-0590","SEC_related_CR_to_TS-0002_on_Trust_transfer","NEC","2015-07-10T17:17:49","Draft","INC",null,"REQ 18"]
["REQ-2015-0591","CR_to_TS-0002_on_dynamic_Verification_of_GW_Processing_Integrity","NEC","2015-07-10T17:37:28","Draft","INC",null,"REQ 18"]
["REQ-2015-0592","Add App-ID Abbreviations and Definitions","Darold Hemphill - iconectiv","2015-07-10T18:54:44","Draft","CR",null,"REQ 18"]
["REQ-2015-0596","Event Trigger Use Case Revise","FUJITSU","2015-07-12T06:20:45","Draft","CR",null,"REQ 18"]
["REQ-2015-0595","External Event Trigger Requirements","FUJITSU","2015-07-12T06:21:38","Draft","CR",null,"REQ 18"]
["REQ-2015-0597","Use Case Anycast Somecast","InterDigital","2015-07-12T19:24:33","Draft","CR",null,"REQ 18"]
["REQ-2015-0598","TS-0002 anycast somecast requirements","InterDigital","2015-07-12T19:24:50","Draft","CR",null,"REQ 18"]
["REQ-2015-0599","Sensor Data Quality","Hitachi","2015-07-13T03:30:07","Draft","INC",null,"REQ 18"]
["REQ-2015-0600","Real Time Data Collection","Hitachi","2015-07-13T03:43:48","Draft","INC",null,"REQ 18"]
["REQ-2015-0601","Requirement of supporting Real Time Data Collection","Hitachi","2015-07-13T04:10:58","Draft","INC",null,"REQ 18"]
["REQ-2015-0602","Requirement of supporting Quality of Sensor Data","Hitachi","2015-07-13T04:20:52","Draft","INC",null,"REQ 18"]
["REQ-2015-0603","Data_encryption_in_industrial_domain","Hitachi","2015-07-13T04:59:05","Draft","INC",null,"REQ 18"]
["REQ-2015-0604","Requirement_of_supporting_data_encryption_in_industrial_domain","Hitachi","2015-07-13T05:01:41","Draft","CR",null,"REQ 18"]
["REQ-2015-0605R01","TS-0002 E2E integrity confidentiality","InterDigital","2015-07-13T12:17:56","Draft","CR",null,"REQ 18"]
["REQ-2015-0606","QoS/QoI monitoring in industrial domain","KETI, LGU+","2015-07-14T16:09:41","Draft","INC",null,"REQ 18"]
["REQ-2015-0607","Use Case for Agricultural Drone","KETI","2015-07-14T16:11:22","Draft","INC",null,"REQ 18"]
["REQ-2015-0608","Requirement of supporting device caching in home domain","KETI","2015-07-14T16:14:34","Draft","INC",null,"REQ 18"]
["REQ-2015-0609","Requirement of supporting device pairing in home domain","KETI","2015-07-14T16:15:50","Draft","INC",null,"REQ 18"]
["REQ-2015-0610","Withdrawn","Toyota InfoTechnology Center, KDDI","2015-07-15T09:32:55","Draft","CR",null,"REQ 18"]
["REQ-2015-0611","Requirements to Support Vehicle Data Service","Toyota InfoTechnology Center, KDDI","2015-07-15T09:37:14","Draft","CR",null,"REQ 18"]
["REQ-2015-0591R01","CR_to_TS-0002_on_dynamic_Verification_of_GW_Processing_Integrity","NEC","2015-07-17T15:13:40","Draft","INC",null,"REQ 18"]
["REQ-2015-0612","WG1 REQ Document Allocation","Shelby Kiewel (iconectiv)","2015-07-17T16:33:46","Draft","AG",null,"REQ 18"]
["REQ-2015-0613","WG1 REQ Agenda","Shelby Kiewel (iconectiv)","2015-07-17T16:37:21","Draft","AG",null,"REQ 18"]
["REQ-2015-0592R01","Add App-ID Abbreviations and Definitions","Darold Hemphill - iconectiv","2015-07-17T20:54:39","Draft","CR",null,"REQ 18"]
["REQ-2015-0589R03","Usecase on vehicle data wipe service","TOYOTA ITC","2015-07-20T07:12:26","Draft","INC",null,"REQ 18"]
["REQ-2015-0614","AppID Comments","IFAST, ILS, Telxxis (TIA TR-50)","2015-07-20T11:49:32","Draft","AG",null,"REQ 18"]
["REQ-2015-0615","AppID CR","IFAST, Telit","2015-07-20T11:52:04","Draft","INC",null,"REQ 18"]
["REQ-2015-0616","AppID CR","IFAST, Telit","2015-07-20T11:56:35","Draft","INC",null,"REQ 18"]
["REQ-2015-0599R01","Sensor Data Quality","Hitachi","2015-07-20T14:09:15","Draft","INC",null,"REQ 18"]
["REQ-2015-0600R01","Real Time Data Collection","Hitachi","2015-07-20T14:22:18","Draft","INC",null,"REQ 18"]
["REQ-2015-0612R01","WG1 REQ Document Allocation","Shelby Kiewel (iconectiv)","2015-07-20T15:19:54","Draft","AG",null,"REQ 18"]
["REQ-2015-0605","TS-0002 E2E integrity confidentiality","InterDigital",null,"Draft","AG",null,"REQ 18"]
["REQ-2015-0594","External Event Trigger Use Case","FUJITSU",null,"Draft","INC",null,"REQ 18"]
["REQ-2015-0589R02","Usecase on vehicle data wipe service","TOYOTA ITC",null,"Draft","INC",null,"REQ 18"]

{"sheet":"ARC","index":4,"n_rows":158,"n_cols":8,"rows_kept":158,"cut":false,"hidden":false,"merged":[]}
["SHORT DOC NB","SHORTNAME","SOURCE","UPLOADED","STATUS","DOC TYPE","VERS","MEETING"]
["ARC-2015-1934","CR CSEBase resource type (R1)","LG Electronics","2015-06-11T08:42:27","Agreed","CR",null,"ARC 18"]
["ARC-2015-1935","CR CSEBase resource type (R2)","LG Electronics","2015-06-11T08:43:53","Agreed","CR",null,"ARC 18"]
["ARC-2015-1940R01","CR for hostedCSEID attribute name correction","C-DOT","2015-06-25T05:51:19","Draft","CR",null,"ARC 18"]
["ARC-2015-1941","CR for serviceSubscribedNode - ruleLinks attribute","C-DOT (Anupama,Poornima)","2015-06-25T06:30:30","Draft","CR",null,"ARC 18"]
["ARC-2015-1942","CR for CRUD on m2mServiceSubscriptionProfile and serviceSubscribedNode","C-DOT (Anupama,Poornima)","2015-07-02T05:43:50","Draft","CR",null,"ARC 18"]
["ARC-2015-1944","Minutes ARC17-3","Karen Hughes, Secretariat","2015-07-02T15:08:23","Agreed","MIN",null,"ARC 18"]
["ARC-2015-1945","Simple word errors correction","LG Electronics","2015-07-03T09:36:47","Agreed","CR",null,"ARC 18"]
["ARC-2015-1947","Multiplicity correction to objectAttribute R1","Yongjing Zhang (Huawei)","2015-07-08T03:57:43","Draft","CR",null,"ARC 18"]
["ARC-2015-1948","Multiplicity correction to objectAttribute R2","Yongjing Zhang (Huawei)","2015-07-08T03:57:56","Draft","CR",null,"ARC 18"]
["ARC-2015-1946","TR-0014-oneM2M_and_AllJoyn_interworking-V0_4_0_Draft","LG Electronics","2015-07-08T05:24:56","Noted","INC",null,"ARC 18"]
["ARC-2015-1949","Target-Notification-Disposition-Policy-Editorial-Enhancements","Ericsson","2015-07-10T12:14:12","Draft","CR",null,"ARC 18"]
["ARC-2015-1950","Procedure-notification-target-removal-Editorial-Enhancements","Ericsson","2015-07-10T12:16:58","Draft","CR",null,"ARC 18"]
["ARC-2015-1951","Mirror1915R01-Resource-Request-Attributes-Duplication","Ericsson","2015-07-10T12:18:26","Draft","CR",null,"ARC 18"]
["ARC-2015-1952","Name-Change-Notification-Target-Deletion-Policies","Ericsson","2015-07-10T12:19:37","Agreed","CR",null,"ARC 18"]
["ARC-2015-1953","Result-content-parameter-clarification","Ericsson","2015-07-10T12:21:20","Draft","CR",null,"ARC 18"]
["ARC-2015-1954","Discovery-Procedure-Clarification","Ericsson","2015-07-10T12:22:44","Draft","CR",null,"ARC 18"]
["ARC-2015-1955","App-ID format and required attributes","Darold Hemphill - iconectiv","2015-07-10T16:52:20","Draft","CR",null,"ARC 18"]
["ARC-2015-1956","Data Streaming support","FUJITSU","2015-07-12T03:43:16","Noted","INC",null,"ARC 18"]
["ARC-2015-1958","skeleton of TR for WI0034","Huawei Technologies Co., Ltd.","2015-07-12T06:59:19","Noted","CR",null,"ARC 18"]
["ARC-2015-1959","skeleton of TR for WI0035","Huawei Technologies Co., Ltd.","2015-07-12T07:01:09","Noted","INC",null,"ARC 18"]
["ARC-2015-1960","group access control","Huawei Technologies Co., Ltd.","2015-07-12T07:02:47","Draft","CR",null,"ARC 18"]
["ARC-2015-1961","group-confirmation","Huawei Technologies Co., Ltd.","2015-07-12T07:04:41","Draft","CR",null,"ARC 18"]
["ARC-2015-1962","group-responses","Huawei Technologies Co., Ltd.","2015-07-12T07:05:38","Draft","CR",null,"ARC 18"]
["ARC-2015-1957","App-ID naming convention","FUJITSU","2015-07-12T07:21:41","Draft","INC",null,"ARC 18"]
["ARC-2015-1963","Response Status Code Release 1","KT Corp.","2015-07-12T10:43:57","Noted","CR",null,"ARC 18"]
["ARC-2015-1964","Response Status Code Release 2","KT Corp.","2015-07-12T10:48:37","Noted","CR",null,"ARC 18"]
["ARC-2015-1965","OET parameter and Resource Type schedule Release 2","KT Corp.","2015-07-12T10:54:11","Noted","CR",null,"ARC 18"]
["ARC-2015-1968","CR for subscription labels multiplicity","InterDigital","2015-07-12T18:48:21","Noted","CR",null,"ARC 18"]
["ARC-2015-1969","Mirror-CR for subscription labels multiplicity","InterDigital","2015-07-12T18:54:22","Agreed","CR",null,"ARC 18"]
["ARC-2015-1968R01","CR for subscription labels multiplicity","InterDigital","2015-07-12T18:57:05","Agreed","CR",null,"ARC 18"]
["ARC-2015-1970","Group update semantics","InterDigital","2015-07-12T19:29:14","Draft","CR",null,"ARC 18"]
["ARC-2015-1971","Node update semantics","InterDigital","2015-07-12T19:29:28","Draft","CR",null,"ARC 18"]
["ARC-2015-1972","location_request_clarification","ZTE","2015-07-13T01:33:00","Draft","CR",null,"ARC 18"]
["ARC-2015-1973","CR_for_resourceID_announce","InterDigital","2015-07-13T01:42:08","Draft","CR",null,"ARC 18"]
["ARC-2015-1974","Mirror_CR_for_resourceID_announce","InterDigital","2015-07-13T01:47:23","Draft","CR",null,"ARC 18"]
["ARC-2015-1975","location_request_clarification_R2_mirror","ZTE","2015-07-13T01:49:48","Draft","CR",null,"ARC 18"]
["ARC-2015-1976","CR_for_announced_RO_attributes","InterDigital","2015-07-13T01:52:08","Noted","CR",null,"ARC 18"]
["ARC-2015-1977","Mirror_CR_for_announced_RO_attributes","InterDigital","2015-07-13T01:53:25","Noted","CR",null,"ARC 18"]
["ARC-2015-1960R01","group access control","Huawei Technologies Co., Ltd.; China Unicom","2015-07-13T03:18:41","Draft","CR",null,"ARC 18"]
["ARC-2015-1959R01","skeleton of TR for WI0035","Huawei Technologies Co., Ltd.; China Unicom","2015-07-13T03:19:28","Agreed","INC",null,"ARC 18"]
["ARC-2015-1979","clause 9.6.1 clarification","ZTE","2015-07-13T03:50:15","Draft","CR",null,"ARC 18"]
["ARC-2015-1980","resource for spooling message","FUJITSU","2015-07-13T03:51:13","Noted","INC",null,"ARC 18"]
["ARC-2015-1981","clause 9.6.1 clarification mirror","ZTE","2015-07-13T03:53:54","Noted","CR",null,"ARC 18"]
["ARC-2015-1982","CR clause 9.4.2","ZTE","2015-07-13T03:57:25","Noted","CR",null,"ARC 18"]
["ARC-2015-1983","CR clause 9.4.2 mirror","ZTE","2015-07-13T04:03:55","Noted","CR",null,"ARC 18"]
["ARC-2015-1979R01","clause 9.6.1 clarification","ZTE","2015-07-13T04:10:35","Noted","CR",null,"ARC 18"]
["ARC-2015-1984","Supporting Time Series Data","Huawei Technologies","2015-07-13T04:30:16","Noted","INC",null,"ARC 18"]
["ARC-2015-1985","New resource for supporting time series data","Huawei Technologies","2015-07-13T04:32:48","Draft","CR",null,"ARC 18"]
["ARC-2015-1986","CR_for_subscription-_notificationContentType_attribute","Huawei Technologies","2015-07-13T04:51:28","Draft","CR",null,"ARC 18"]
["ARC-2015-1987","CR for subscription- notificationContentType attribute","Huawei Technologies","2015-07-13T04:55:11","Withdrawn","CR",null,"ARC 18"]
["ARC-2015-1988","CR for subscription- notificationContentType attribute","Huawei Technologies","2015-07-13T04:56:40","Withdrawn","CR",null,"ARC 18"]
["ARC-2015-1989","Transit CSE Behavior Correction","LG Electronics","2015-07-13T08:47:24","Draft","CR",null,"ARC 18"]
["ARC-2015-1990","From Parameter When Announcing Resource","LG Electronics","2015-07-13T08:55:05","Noted","CR",null,"ARC 18"]
["ARC-2015-1995","Transit CSE Behavior Correction (R2)","LG Electronics","2015-07-13T09:01:47","Draft","CR",null,"ARC 18"]
["ARC-2015-2001","From Parameter When Announcing Resource (R2)","LG Electronics","2015-07-13T09:04:09","Noted","CR",null,"ARC 18"]
["ARC-2015-1902R01","CR_structured_resource_ID_clarification","LG Electronics","2015-07-13T09:07:33","Draft","CR",null,"ARC 18"]
["ARC-2015-1903R01","CR_structured_resource_ID_clarification(R2)","LG Electronics","2015-07-13T09:09:50","Draft","CR",null,"ARC 18"]
["ARC-2015-1991","MNT_CR_batchNotify_(R1)","LG Electronics, VIA Telecom","2015-07-13T09:41:53","Noted","CR",null,"ARC 18"]
["ARC-2015-1992","MNT_CR_batchNotify_(R2)","LG Electronics, VIA Telecom","2015-07-13T09:42:10","Noted","CR",null,"ARC 18"]
["ARC-2015-1993","MNT_CR_accessControlPolicy_procedure_(R1)","LG Electronics","2015-07-13T09:43:50","Draft","CR",null,"ARC 18"]
["ARC-2015-1994","MNT_CR_accessControlPolicy_procedure_(R2)","LG Electronics","2015-07-13T09:44:11","Draft","CR",null,"ARC 18"]
["ARC-2015-1996","MNT_CR_locationPolicy_resource_procedure_(R1)","LG Electronics","2015-07-13T09:46:22","Draft","CR",null,"ARC 18"]
["ARC-2015-1997","MNT_CR_locationPolicy_resource_procedure_(R2)","LG Electronics","2015-07-13T09:46:45","Draft","CR",null,"ARC 18"]
["ARC-2015-1998","MNT_CR_polling_response_(R1)","LG Electronics","2015-07-13T09:48:09","Draft","CR",null,"ARC 18"]
["ARC-2015-1999","MNT_CR_polling_response_(R2)","LG Electronics","2015-07-13T09:48:32","Draft","CR",null,"ARC 18"]
["ARC-2015-2000","MNT_CR_pollingChannel_procedure_(R1)","LG Electronics","2015-07-13T09:50:24","Draft","CR",null,"ARC 18"]
["ARC-2015-2002","MNT_CR_pollingChannel_procedure_(R2)","LG Electronics","2015-07-13T09:50:46","Draft","CR",null,"ARC 18"]
["ARC-2015-2003","MNT_CR_resourceID_of_AE_(R1)","LG Electronics","2015-07-13T09:53:06","Noted","CR",null,"ARC 18"]
["ARC-2015-2004","MNT_CR_resourceID_of_AE_(R2)","LG Electronics","2015-07-13T09:53:28","Noted","CR",null,"ARC 18"]
["ARC-2015-2005","STE_CR_container_for_locationPolicy","LG Electronics","2015-07-13T09:54:48","Draft","CR",null,"ARC 18"]
["ARC-2015-2015","CR for Remote CSE ACP Check(R1)","LG Electronics","2015-07-13T10:40:16","Draft","CR",null,"ARC 18"]
["ARC-2015-2016","CR for Remote CSE ACP Check(R2)","LG Electronics","2015-07-13T10:40:39","Draft","CR",null,"ARC 18"]
["ARC-2015-2014","CR for group memberType clarification(R2)","LG Electronics","2015-07-13T10:41:02","Draft","CR",null,"ARC 18"]
["ARC-2015-2013","CR for group memberType clarification(R1)","LG Electronics","2015-07-13T10:41:24","Draft","CR",null,"ARC 18"]
["ARC-2015-2012","CR for Announced resource introduction(R2)","LG Electronics","2015-07-13T10:41:58","Noted","CR",null,"ARC 18"]
["ARC-2015-2011","CR for Announced resource introduction(R1)","LG Electronics","2015-07-13T10:42:18","Noted","CR",null,"ARC 18"]
["ARC-2015-2010","CR for AE Registration Bug fix(R2)","LG Electronics","2015-07-13T10:43:12","Draft","CR",null,"ARC 18"]
["ARC-2015-2009","CR for AE Registration Bug fix(R1)","LG Electronics","2015-07-13T10:43:34","Draft","CR",null,"ARC 18"]
["ARC-2015-2008","Simple word errors correction(R2)","LG Electronics","2015-07-13T10:43:54","Agreed","CR",null,"ARC 18"]
["ARC-2015-2017","CR on cmdhPolicyName attribute in CMDH Policy R1","Qualcomm Inc. (TIA)","2015-07-13T10:53:43","Agreed","CR",null,"ARC 18"]
["ARC-2015-2018","Mirror CR on cmdhPolicyName attribute in CMDH Policy R2","Qualcomm Inc. (TIA)","2015-07-13T10:55:40","Agreed","CR",null,"ARC 18"]
["ARC-2015-1966","Non-Blocking Asynch Target List","Qualcomm Inc. (TIA)","2015-07-13T12:12:18","Noted","CR",null,"ARC 18"]
["ARC-2015-1967","Mirror CR Non-Blocking Asynch Target List","Qualcomm Inc. (TIA)","2015-07-13T12:55:47","Noted","CR",null,"ARC 18"]
["ARC-2015-1966R01","Non-Blocking Asynch Target List","Qualcomm Inc. (TIA)","2015-07-13T12:57:13","Agreed","CR",null,"ARC 18"]
["ARC-2015-1967R01","Mirror CR Non-Blocking Asynch Target List","Qualcomm Inc. (TIA)","2015-07-13T12:57:38","Agreed","CR",null,"ARC 18"]
["ARC-2015-2019","SemanticFilterCriteria","NEC","2015-07-13T13:22:22","Draft","CR",null,"ARC 18"]
["ARC-2015-2020","CR on correcting ID examples R1","Qualcomm Inc. (TIA)","2015-07-13T14:29:13","Draft","CR",null,"ARC 18"]
["ARC-2015-2021","Mirror CR on correcting ID examples R2","Qualcomm Inc. (TIA)","2015-07-13T14:31:01","Draft","CR",null,"ARC 18"]
["ARC-2015-2022","Experience and discussion on IPE Implementation","KETI","2015-07-13T15:48:33","Noted","INC",null,"ARC 18"]
["ARC-2015-2024","STE CR resourceName vs resourceId vs AE-ID vs CSE-ID R2","Qualcomm Inc. (TIA)","2015-07-14T00:00:28","Draft","CR",null,"ARC 18"]
["ARC-2015-2023","STE Discussion Hierarchical Adressing","Qualcomm Inc. (TIA)","2015-07-14T00:01:35","Draft","INC",null,"ARC 18"]
["ARC-2015-2027","appObj_new_resource_type","LG Electronics","2015-07-14T09:47:15","Draft","CR",null,"ARC 18"]
["ARC-2015-2025","MNT_CR_S-type_AE-ID_for_ACP_(R1)","LG Electronics","2015-07-14T09:47:33","Draft","CR",null,"ARC 18"]
["ARC-2015-2026","MNT_CR_S-type_AE-ID_for_ACP_(R2)","LG Electronics","2015-07-14T09:47:51","Draft","CR",null,"ARC 18"]
["ARC-2015-2028","CR_for_resourceType_Access_Mode(R1)","LG Electronics","2015-07-15T01:36:29","Agreed","CR",null,"ARC 18"]
["ARC-2015-2029","CR_for_resourceType_Access_Mode(R2)","LG Electronics","2015-07-15T01:37:09","Agreed","CR",null,"ARC 18"]
["ARC-2015-2006","MNT_CR_request_ID_clarification_(R1)","LG Electronics","2015-07-15T06:51:49","Draft","CR",null,"ARC 18"]
["ARC-2015-2007","MNT_CR_request_ID_clarification_(R2)","LG Electronics","2015-07-15T06:52:11","Draft","CR",null,"ARC 18"]
["ARC-2015-1958R01","skeleton of TR for WI0034","Huawei Technologies Co., Ltd.; ZTE","2015-07-16T08:03:05","Noted","CR",null,"ARC 18"]
["ARC-2015-2030","ARC#18 Agenda","Nicolas Damour, WG2 Chairman","2015-07-16T13:57:37","Noted","AG",null,"ARC 18"]
["ARC-2015-2032","MNT CR resourceId attribute clarification R1","Qualcomm Inc. (TIA)","2015-07-16T18:02:21","Draft","CR",null,"ARC 18"]
["ARC-2015-2033","Mirror MNT CR resourceId attribute clarification R2","Qualcomm Inc. (TIA)","2015-07-16T18:04:15","Draft","CR",null,"ARC 18"]
["ARC-2015-1955R01","App-ID format and required attributes","Darold Hemphill - iconectiv","2015-07-17T14:33:31","Draft","CR",null,"ARC 18"]
["ARC-2015-2031","ARC#18 Document allocation","Nicolas Damour, WG2 Chairman","2015-07-17T14:41:24","Noted","AG",null,"ARC 18"]
["ARC-2015-2034","CR Add Response Code","KT","2015-07-17T16:17:04","Noted","CR",null,"ARC 18"]
["ARC-2015-2035","AppID Comments","IFAST, ILS, Telxxis (TIA TR-50)","2015-07-20T11:54:03","Draft","INC",null,"ARC 18"]
["ARC-2015-2034R01","CR Add Response Code","KT","2015-07-20T14:47:04","Noted","CR",null,"ARC 18"]
["ARC-2015-1970R01","Group update semantics","InterDigital","2015-07-20T15:09:16","Draft","CR",null,"ARC 18"]
["ARC-2015-1971R01","Node update semantics","InterDigital","2015-07-20T15:10:03","Draft","CR",null,"ARC 18"]
["ARC-2015-2036","AppID CR","IFAST, Telit","2015-07-20T15:48:25","Draft","INC",null,"ARC 18"]
["ARC-2015-2031R01","ARC#18 Document allocation","Nicolas Damour, WG2 Chairman","2015-07-20T18:05:27","Noted","AG",null,"ARC 18"]
["ARC-2015-2030R01","ARC#18 Agenda","Nicolas Damour, WG2 Chairman","2015-07-20T18:48:36","Agreed","AG",null,"ARC 18"]
["ARC-2015-1958R02","skeleton of TR for WI0034","Huawei Technologies Co., Ltd.; ZTE","2015-07-20T19:40:43","Agreed","CR",null,"ARC 18"]
["ARC-2015-1946R01","TR-0014-oneM2M_and_AllJoyn_interworking-V0_4_0_Draft","LG Electronics","2015-07-20T21:42:10","Draft","INC",null,"ARC 18"]
["ARC-2015-2003R01","MNT_CR_resourceID_of_AE_(R1)","LG Electronics","2015-07-20T21:49:45","Agreed","CR",null,"ARC 18"]
["ARC-2015-2004R01","MNT_CR_resourceID_of_AE_(R2)","LG Electronics","2015-07-20T21:50:19","Agreed","CR",null,"ARC 18"]
["ARC-2015-1963R01","Response Status Code Release 1","KT Corp.","2015-07-21T12:03:51","Noted","CR",null,"ARC 18"]
["ARC-2015-1964R01","Response Status Code Release 2","KT Corp.","2015-07-21T12:04:39","Noted","CR",null,"ARC 18"]
["ARC-2015-1982R01","CR clause 9.4.2","ZTE","2015-07-21T12:46:54","Agreed","CR",null,"ARC 18"]
["ARC-2015-1983R01","CR clause 9.4.2 mirror","ZTE","2015-07-21T12:53:53","Agreed","CR",null,"ARC 18"]
["ARC-2015-1984R01","Supporting Time Series Data","Huawei Technologies","2015-07-21T13:47:33","Noted","INC",null,"ARC 18"]
["ARC-2015-2037","CR_for_announced_RO_attributes_(R1)","InterDigital, LG Electronics","2015-07-21T14:34:01","Withdrawn","CR",null,"ARC 18"]
["ARC-2015-1976R01","CR_for_announced_RO_attributes_(R1)","InterDigital, LG Eletronics","2015-07-21T14:38:19","Draft","CR",null,"ARC 18"]
["ARC-2015-1977R01","Mirror_CR_for_announced_RO_attributes_(R1)","InterDigital, LG Eletronics","2015-07-21T14:40:46","Draft","CR",null,"ARC 18"]
["ARC-2015-1965R01","OET parameter and Resource Type schedule Release 2","KT Corp.","2015-07-21T15:11:27","Draft","CR",null,"ARC 18"]
["ARC-2015-2011R01","CR for Announced resource introduction(R1)","LG Electronics","2015-07-21T15:47:37","Draft","CR",null,"ARC 18"]
["ARC-2015-2012R01","CR for Announced resource introduction(R2)","LG Electronics","2015-07-21T15:48:04","Draft","CR",null,"ARC 18"]
["ARC-2015-1991R01","MNT_CR_batchNotify_(R1)","LG Electronics, VIA Telecom","2015-07-21T17:03:44","Draft","CR",null,"ARC 18"]
["ARC-2015-1992R01","MNT_CR_batchNotify_(R2)","LG Electronics, VIA Telecom","2015-07-21T17:04:06","Draft","CR",null,"ARC 18"]
["ARC-2015-1949R01","Target-Notification-Disposition-Policy-Editorial-Enhancements","Ericsson","2015-07-21T19:25:49","Draft","CR",null,"ARC 18"]
["ARC-2015-1952R01","Name-Change-Notification-Target-Deletion-Policies","Ericsson","2015-07-21T19:26:35","Draft","CR",null,"ARC 18"]
["ARC-2015-2034R02","CR Add Response Code","KT","2015-07-21T20:40:24","Draft","CR",null,"ARC 18"]
["ARC-2015-1953R01","Result-content-parameter-clarification","Ericsson","2015-07-21T21:11:44","Draft","CR",null,"ARC 18"]
["ARC-2015-2040","MNT scheduleElement attribute Release 1","KT","2015-07-22T06:25:38","Draft","CR",null,"ARC 18"]
["ARC-2015-2041","MNT scheduleElement attribute Release 2","KT","2015-07-22T06:27:45","Draft","CR",null,"ARC 18"]
["ARC-2015-1965R02","OET parameter and Resource Type schedule Release 2","KT Corp.","2015-07-22T06:29:28","Draft","CR",null,"ARC 18"]
["ARC-2015-2039","MNT_CR_polling_mechanism_diagram(R1)","LG Electronics","2015-07-22T09:49:55","Draft","CR",null,"ARC 18"]
["ARC-2015-2042","MNT_CR_polling_mechanism_diagram(R2)","LG Electronics","2015-07-22T09:51:51","Draft","CR",null,"ARC 18"]
["ARC-2015-1953R02","Result-content-parameter-clarification","Ericsson","2015-07-22T12:48:56","Draft","CR",null,"ARC 18"]
["ARC-2015-2043","CR_for_subscription-_notificationContentType_attribute(R1)","Huawei","2015-07-22T13:22:36","Draft","CR",null,"ARC 18"]
["ARC-2015-1986R01","CR_for_subscription-_notificationContentType_attribute(R2)","Huawei Technologies","2015-07-22T13:30:30","Draft","CR",null,"ARC 18"]
["ARC-2015-1963R02","Response Status Code Release 1","KT Corp.","2015-07-22T13:53:58","Draft","CR",null,"ARC 18"]
["ARC-2015-1964R02","Response Status Code Release 2","KT Corp.","2015-07-22T13:55:44","Draft","CR",null,"ARC 18"]
["ARC-2015-2038","3GPP Rel-13 Interworking discussions","Rajesh Bhalla, ZTE","2015-07-22T14:14:04","Draft","INC",null,"ARC 18"]
["ARC-2015-2043R01","CR_for_subscription-_notificationContentType_attribute(R1)","Huawei","2015-07-22T14:41:36","Draft","CR",null,"ARC 18"]
["ARC-2015-1986R02","CR_for_subscription-_notificationContentType_attribute(R2)","Huawei Technologies","2015-07-22T14:44:21","Draft","CR",null,"ARC 18"]
["ARC-2015-2041R01","MNT scheduleElement attribute Release 2","KT","2015-07-22T15:20:28","Draft","CR",null,"ARC 18"]
["ARC-2015-2040R01","MNT scheduleElement attribute Release 1","KT","2015-07-22T15:25:26","Draft","CR",null,"ARC 18"]
["ARC-2015-2040R02","MNT scheduleElement attribute Release 1","KT","2015-07-22T15:51:48","Draft","CR",null,"ARC 18"]
["ARC-2015-1953R03","Result-content-parameter-clarification","Ericsson","2015-07-22T15:56:52","Draft","CR",null,"ARC 18"]
["ARC-2015-2041R02","MNT scheduleElement attribute Release 2","KT","2015-07-22T16:14:48","Draft","CR",null,"ARC 18"]
["ARC-2015-1965R03","OET parameter and Resource Type schedule Release 2","KT Corp.","2015-07-22T16:41:15","Draft","CR",null,"ARC 18"]
["ARC-2015-1979R02","clause 9.6.1 clarification","ZTE","2015-07-22T17:51:01","Draft","CR",null,"ARC 18"]
["ARC-2015-1981R01","clause 9.6.1 clarification mirror","ZTE","2015-07-22T17:52:12","Draft","CR",null,"ARC 18"]
["ARC-2015-1984R02","Supporting Time Series Data","Huawei Technologies","2015-07-22T18:41:49","Draft","INC",null,"ARC 18"]
["ARC-2015-2044","Multiplicity Naming Convention Alignment R1","Huawei","2015-07-22T20:33:33","Draft","CR",null,"ARC 18"]
["ARC-2015-2045","Multiplicity Naming Convention Alignment R2","Huawei","2015-07-22T20:33:58","Draft","CR",null,"ARC 18"]

{"sheet":"PRO","index":5,"n_rows":52,"n_cols":8,"rows_kept":52,"cut":false,"hidden":false,"merged":[]}
["SHORT DOC NB","SHORTNAME","SOURCE","UPLOADED","STATUS","DOC TYPE","VERS","MEETING"]
["PRO-2015-0783R02","Clarification_on_XSD_usage","Qualcomm Inc. (TIA), FUJITSU","2015-06-05T19:57:22","Draft","CR",null,"PRO 18"]
["PRO-2015-0815","CR schedule resource type","LG Electronics","2015-06-11T08:29:21","Draft","CR",null,"PRO 18"]
["PRO-2015-0768R03","CR_parameter_default_values","LG Electronics","2015-06-11T08:30:01","Draft","CR",null,"PRO 18"]
["PRO-2015-0819R01","Step value syntax for scheduleElement","QUALCOMM","2015-06-30T15:12:16","Draft","CR",null,"PRO 18"]
["PRO-2015-0808R01","CR_TS-0009_response_code_mapping_enhancement","LG Electronics","2015-07-03T06:13:42","Draft","CR",null,"PRO 18"]
["PRO-2015-0822","CR_poa_for_mqtt","LG Electronics","2015-07-03T09:14:29","Draft","CR",null,"PRO 18"]
["PRO-2015-0823","CR_accessControlRule_data_type","LG Electronics","2015-07-03T09:15:30","Draft","CR",null,"PRO 18"]
["PRO-2015-0824","CR_missing_shortnames","FUJITSU","2015-07-05T03:28:30","Draft","CR",null,"PRO 18"]
["PRO-2015-0825","CR_missing_shortnames(Mirrored)","FUJITSU","2015-07-05T03:31:22","Draft","CR",null,"PRO 18"]
["PRO-2015-0824R01","CR_missing_shortnames","FUJITSU","2015-07-05T10:54:35","Draft","CR",null,"PRO 18"]
["PRO-2015-0825R01","CR_missing_shortnames(Mirrored)","FUJITSU","2015-07-05T10:57:42","Draft","CR",null,"PRO 18"]
["PRO-2015-0824R02","CR_missing_shortnames","FUJITSU","2015-07-05T11:37:59","Draft","CR",null,"PRO 18"]
["PRO-2015-0825R02","CR_missing_shortnames(Mirrored)","FUJITSU","2015-07-05T11:41:07","Draft","CR",null,"PRO 18"]
["PRO-2015-0826","XSD long to short conversion","FUJITSU","2015-07-05T11:58:16","Draft","INC",null,"PRO 18"]
["PRO-2015-0827","CR TS-0008 TokenSize BlockTransfer","Giesecke & Devrient","2015-07-07T12:01:35","Draft","INC",null,"PRO 18"]
["PRO-2015-0828","CR TS-0004 Diameter Charging Code Points Correction","Ericsson","2015-07-09T16:13:58","Draft","CR",null,"PRO 18"]
["PRO-2015-0830","LSout 3GPP SA5 Code Point","Ericsson","2015-07-09T16:17:20","Draft","LS",null,"PRO 18"]
["PRO-2015-0831","Draft_TS-0004_v.2.0.0","TS-0004 Rapportuers","2015-07-10T05:13:47","Draft","INC",null,"PRO 18"]
["PRO-2015-0828R01","CR TS-0004 Diameter Charging Code Points Correction","Ericsson","2015-07-11T11:50:54","Draft","CR",null,"PRO 18"]
["PRO-2015-0829","CR TS-0004 Diameter Charging Code Points Correction(Mirror)","Ericsson","2015-07-11T11:52:34","Draft","CR",null,"PRO 18"]
["PRO-2015-0832","group-access control-stage3","Huawei Technologies Co., Ltd.","2015-07-12T07:07:06","Draft","CR",null,"PRO 18"]
["PRO-2015-0833","HTTP Method","KT","2015-07-12T11:27:13","Draft","CR",null,"PRO 18"]
["PRO-2015-0834","X-M2M-OP header","KT","2015-07-12T11:39:01","Draft","CR",null,"PRO 18"]
["PRO-2015-0835","scheduleEntry Data Type Release 2","KT","2015-07-12T11:47:48","Draft","CR",null,"PRO 18"]
["PRO-2015-0836","Generic procedure of Originator","KT","2015-07-12T12:28:43","Draft","CR",null,"PRO 18"]
["PRO-2015-0837","Notification-Originator-Operation","InterDigital","2015-07-12T17:21:24","Draft","CR",null,"PRO 18"]
["PRO-2015-0838","Notification-Originator-Operation-Mirror","InterDigital","2015-07-12T17:23:47","Draft","CR",null,"PRO 18"]
["PRO-2015-0839","announcedResource-expirationTime","InterDigital","2015-07-12T17:55:52","Draft","CR",null,"PRO 18"]
["PRO-2015-0840","announcedResource-expirationTime-Mirror","InterDigital","2015-07-12T18:01:51","Draft","CR",null,"PRO 18"]
["PRO-2015-0841","XSD-List_cardinality","Qualcomm Inc., IBM","2015-07-12T22:25:23","Draft","CR",null,"PRO 18"]
["PRO-2015-0842","FilterCriteria_corrections","Qualcomm","2015-07-12T22:30:12","Draft","CR",null,"PRO 18"]
["PRO-2015-0843","TS-0009v1_1_0-corrections","Qualcomm Inc.","2015-07-12T22:35:01","Draft","CR",null,"PRO 18"]
["PRO-2015-0844","TS-0004-primitive_content_clarification","Qualcomm Inc.","2015-07-12T22:41:57","Draft","CR",null,"PRO 18"]
["PRO-2015-0845","Timestamp_format_in_primitives","Qualcomm Inc.","2015-07-12T22:49:10","Draft","CR",null,"PRO 18"]
["PRO-2015-0846","WebSocket registration procedure","FUJITSU","2015-07-13T03:20:35","Draft","CR",null,"PRO 18"]
["PRO-2015-0847","resource for spooling message","FUJITSU","2015-07-13T03:48:38","Draft","INC",null,"PRO 18"]
["PRO-2015-0848","Update Operation Mapping in HTTP","LG Electronics","2015-07-13T07:49:50","Draft","CR",null,"PRO 18"]
["PRO-2015-0852","CR TS0004 Alignment with TS0001 and TS0003 on Role parameter","Oberthur Technologies, Qualcomm Inc.","2015-07-13T09:33:49","Draft","INC",null,"PRO 18"]
["PRO-2015-0853","Mirror CR TS0004 Alignment with TS0001 and TS0003 on Role parameter","Oberthur Technologies, Qualcomm Inc.","2015-07-13T09:37:25","Draft","INC",null,"PRO 18"]
["PRO-2015-0854","CR for creator request optionality","LG Electronics","2015-07-15T01:38:38","Draft","CR",null,"PRO 18"]
["PRO-2015-0857","STE_CR_locationUpdatePeriod_(R2)","LG Electronics","2015-07-15T08:30:47","Draft","CR",null,"PRO 18"]
["PRO-2015-0849","CR_pollingChannelURI_procedure","LG Electronics","2015-07-15T08:31:16","Draft","CR",null,"PRO 18"]
["PRO-2015-0856","CR_batchNotify","LG Electronics","2015-07-15T08:31:38","Draft","CR",null,"PRO 18"]
["PRO-2015-0857R01","STE_CR_locationUpdatePeriod_(R2)","LG Electronics","2015-07-15T08:56:08","Draft","CR",null,"PRO 18"]
["PRO-2015-0855","PRO18.0 Agenda","WG3/PRO Charirman","2015-07-15T12:56:14","Draft","AG",null,"PRO 18"]
["PRO-2015-0851","CR_locationPolicy","LG Electronics","2015-07-16T03:32:21","Draft","CR",null,"PRO 18"]
["PRO-2015-0855R01","PRO18.0 Agenda","WG3/PRO Charirman","2015-07-17T14:38:27","Draft","AG",null,"PRO 18"]
["PRO-2015-0858","Draft_baseline_TS-0010_V-1_2_0","MQTT Protocol TS Rapporteur","2015-07-19T01:36:05","Draft","INC",null,"PRO 18"]
["PRO-2015-0859","Draft_baseline_TS-0010_V-2_0_0","MQTT Protocol TS Rapporteur","2015-07-19T01:48:15","Draft","INC",null,"PRO 18"]
["PRO-2015-0850","CR_from_parameter_scope","LG Electronics",null,"Draft","CR",null,"PRO 18"]
["ARC-2015-1978","WebSocket registration procedure","FUJITSU",null,"Draft","CR",null,"PRO 18"]

{"sheet":"SEC","index":6,"n_rows":26,"n_cols":8,"rows_kept":26,"cut":false,"hidden":false,"merged":[]}
["SHORT DOC NB","SHORTNAME","SOURCE","UPLOADED","STATUS","DOC TYPE","VERS","MEETING"]
["SEC-2015-0551","CR for naming correction in figures","C-DOT (Anupama,Poornima)","2015-07-08T06:13:26","Draft","CR",null,"SEC 18"]
["SEC-2015-0552","CR for section reference corrections","C-DOT (Anupama,Poornima)","2015-07-08T06:37:11","Draft","CR",null,"SEC 18"]
["SEC-2015-0553","SE reference point","Giesecke & Devrient","2015-07-08T07:54:36","Draft","INC",null,"SEC 18"]
["SEC-2015-0554","SE abstraction architecture","Giesecke & Devrient","2015-07-08T07:55:21","Draft","INC",null,"SEC 18"]
["SEC-2015-0555","Types of SEs","Giesecke & Devrient","2015-07-08T08:03:59","Draft","INC",null,"SEC 18"]
["SEC-2015-0556","CR for word correction provisioned to pre-provisioned","C-DOT (Suman,Poornima)","2015-07-08T09:20:56","Draft","CR",null,"SEC 18"]
["SEC-2015-0557","TACML-PPM","BT Group","2015-07-12T12:27:29","Draft","INC",null,"SEC 18"]
["SEC-2015-0558","use-case-requirements-end-to-end-authentication-using-delegation","InterDigital","2015-07-13T02:18:05","Draft","CR",null,"SEC 18"]
["SEC-2015-0559","discussions-on-end-to-end-data-security","InterDigital","2015-07-13T02:23:14","Draft","CR",null,"SEC 18"]
["SEC-2015-0560","definitions-for-end-to-end-data-security","InterDigital","2015-07-13T02:26:29","Draft","CR",null,"SEC 18"]
["SEC-2015-0561","use-case-requirements-for-end-to-end-data-integrity","InterDigital","2015-07-13T02:29:20","Draft","CR",null,"SEC 18"]
["SEC-2015-0562","use-case-requirements-for-end-to-end-data-confidentiality","InterDigital","2015-07-13T02:32:26","Draft","CR",null,"SEC 18"]
["SEC-2015-0563","Group Authentication Solution","China Mobile","2015-07-13T06:47:54","Draft","INC",null,"SEC 18"]
["SEC-2015-0564","TR-0019 Role Token Use Case for Dynamic Authorization","Datang, CATR","2015-07-13T08:02:24","Draft","INC",null,"SEC 18"]
["SEC-2015-0565","TR-0019 Access Token Use Case for Dynamic Authorization","Datang, China Unicom","2015-07-13T08:08:07","Draft","INC",null,"SEC 18"]
["SEC-2015-0566","Access Control Bug Fix For Discovery","LG Electronics","2015-07-13T08:49:58","Draft","CR",null,"SEC 18"]
["SEC-2015-0549R01","Certificate Enrolment STEs","Phil Hawkes, Qualcomm","2015-07-13T12:50:10","Noted","INC",null,"SEC 18"]
["SEC-2015-0568","SEC 18 Agenda","WG Chair","2015-07-16T18:25:56","Draft","AG",null,"SEC 18"]
["SEC-2015-0570","TR-0019 A Proposal for Token Issuance Architecture Part","Datang","2015-07-17T10:01:33","Draft","INC",null,"SEC 18"]
["SEC-2015-0571","TR-0019 A Proposal of Token Issuance General Procedure Part","Datang","2015-07-17T10:05:08","Draft","INC",null,"SEC 18"]
["SEC-2015-0572","TR-0019 A Proposal of Token Issuance Resource Definition Part","Datang","2015-07-17T10:09:29","Draft","INC",null,"SEC 18"]
["SEC-2015-0573","TR-0019 A Proposal of Token Issuance Resource Procedure Part","Datang","2015-07-17T10:11:48","Draft","INC",null,"SEC 18"]
["SEC-2015-0568R01","SEC 18 Agenda","WG Chair","2015-07-17T17:55:59","Draft","AG",null,"SEC 18"]
["SEC-2015-0549R02","Certificate Enrolment STEs","Phil Hawkes, Qualcomm","2015-07-20T08:40:10","Noted","INC",null,"SEC 18"]
["SEC-2015-0568R02","SEC 18 Agenda","WG Chair","2015-07-20T14:14:33","Draft","AG",null,"SEC 18"]

{"sheet":"MAS","index":7,"n_rows":32,"n_cols":8,"rows_kept":32,"cut":false,"hidden":false,"merged":[]}
["SHORT DOC NB","SHORTNAME","SOURCE","UPLOADED","STATUS","DOC TYPE","VERS","MEETING"]
["MAS-2015-0591","TS-0012-V0_3_0 Base Ontology update after MAS#17.3","NEC (rapporteur)","2015-07-07T10:23:36","Agreed","INC",null,"MAS 18"]
["MAS-2015-0594","Discussions on semantic description  rules","China Unicom","2015-07-10T15:44:34","Draft","INC",null,"MAS 18"]
["MAS-2015-0593","TS-0005 Align Resource Names and Attributes","Gemalto N.V","2015-07-10T21:17:53","Draft","CR",null,"MAS 18"]
["MAS-2015-0596","Proposed modification for Section 7 on mapping of the base ontoloy and external ontologies","Modacom","2015-07-11T12:48:04","Draft","INC",null,"MAS 18"]
["MAS-2015-0592","Modeling M2M app data","FUJITSU","2015-07-12T02:39:38","Draft","INC",null,"MAS 18"]
["REQ-2015-0593","Requirement for collecting data from M2M device","FUJITSU","2015-07-12T02:53:39","Draft","CR",null,"MAS 18"]
["MAS-2015-0595","TS-0012 Update on Base Ontology and Mapping to oneM2M Resources","NEC","2015-07-13T15:25:39","Draft","INC",null,"MAS 18"]
["MAS-2015-0597","TR-0017 Home Domain Abstract Information Model V0.5.0 Draft Baseline","KETI","2015-07-14T06:38:28","Agreed","INC",null,"MAS 18"]
["MAS-2015-0598","Semantic_Filtering_and_Discovery","NEC","2015-07-14T14:58:45","Draft","CR",null,"MAS 18"]
["MAS-2015-0600","Agenda MAS#18","Yongjing Zhang (Huawei, Chair)","2015-07-16T06:58:24","Draft","AG",null,"MAS 18"]
["MAS-2015-0601","MAS#18 Doc allocation","Yongjing Zhang (Huawei, Chair)","2015-07-16T06:58:36","Draft","AG",null,"MAS 18"]
["MAS-2015-0599","HGI activities transfer to oneM2M WG5","Patricia MARTIGNE, ORANGE","2015-07-20T00:36:15","Draft","INC",null,"MAS 18"]
["MAS-2015-0601R01","MAS#18 Doc allocation","Yongjing Zhang (Huawei, Chair)","2015-07-20T03:00:12","Draft","AG",null,"MAS 18"]
["MAS-2015-0600R01","Agenda MAS#18","Yongjing Zhang (Huawei, Chair)","2015-07-20T03:12:38","Draft","AG",null,"MAS 18"]
["MAS-2015-0592R01","Modeling M2M app data","FUJITSU","2015-07-20T16:17:14","Draft","INC",null,"MAS 18"]
["MAS-2015-0601R02","MAS#18 Doc allocation","Yongjing Zhang (Huawei, Chair)","2015-07-20T16:27:34","Draft","AG",null,"MAS 18"]
["MAS-2015-0600R02","Agenda MAS#18","Yongjing Zhang (Huawei, Chair)","2015-07-20T16:28:15","Draft","AG",null,"MAS 18"]
["MAS-2015-0603","Ontology Resource Discussion","InterDigital","2015-07-20T16:39:31","Draft","INC",null,"MAS 18"]
["MAS-2015-0601R03","MAS#18 Doc allocation","Yongjing Zhang (Huawei, Chair)","2015-07-20T18:57:01","Draft","AG",null,"MAS 18"]
["MAS-2015-0600R03","Agenda MAS#18","Yongjing Zhang (Huawei, Chair)","2015-07-20T18:57:48","Draft","AG",null,"MAS 18"]
["MAS-2015-0593R01","TS-0005 Align Resource Names and Attributes","Gemalto N.V","2015-07-20T19:13:26","Agreed","CR",null,"MAS 18"]
["MAS-2015-0601R04","MAS#18 Doc allocation","Yongjing Zhang (Huawei, Chair)","2015-07-20T20:47:20","Draft","AG",null,"MAS 18"]
["MAS-2015-0604","SemanticFilteringUsingDistributedSemanticDescriptors","NEC","2015-07-21T12:18:37","Draft","CR",null,"MAS 18"]
["MAS-2015-0596R01","Proposed modification for Section 7 on mapping of the base ontoloy and external ontologies","Modacom","2015-07-21T14:34:37","Draft","INC",null,"MAS 18"]
["MAS-2015-0595R01","TS-0012 Update on Base Ontology and Mapping to oneM2M Resources","NEC","2015-07-21T14:52:02","Draft","INC",null,"MAS 18"]
["MAS-2015-0605","Proposal for a new WI","Patricia Martigne (Orange)","2015-07-21T19:50:45","Draft","INC",null,"MAS 18"]
["MAS-2015-0595R02","TS-0012 Update on Base Ontology and Mapping to oneM2M Resources","NEC","2015-07-21T20:44:15","Draft","INC",null,"MAS 18"]
["MAS-2015-0596R02","Proposed modification for Section 7 on mapping of the base ontoloy and external ontologies","Modacom","2015-07-21T21:04:16","Draft","INC",null,"MAS 18"]
["MAS-2015-0599R01","HGI activities transfer to oneM2M WG5","Patricia MARTIGNE, ORANGE","2015-07-21T22:49:56","Draft","INC",null,"MAS 18"]
["MAS-2015-0601R05","MAS#18 Doc allocation","Yongjing Zhang (Huawei, Chair)","2015-07-22T03:26:47","Draft","AG",null,"MAS 18"]
["MAS-2015-0595R03","TS-0012 Update on Base Ontology and Mapping to oneM2M Resources","NEC","2015-07-22T13:28:55","Draft","INC",null,"MAS 18"]

{"sheet":"TST","index":8,"n_rows":36,"n_cols":8,"rows_kept":36,"cut":false,"hidden":false,"merged":[]}
["SHORT DOC NB","SHORTNAME","SOURCE","UPLOADED","STATUS","DOC TYPE","VERS","MEETING"]
["TST-2015-0123","ICS baseline v0.0.2","KETI","2015-07-08T13:47:03","Draft","INC",null,"TST 18"]
["TST-2015-0124","Issues_pertaining_to_IOP_test","Huawei Technologies Co., Ltd.","2015-07-12T06:49:01","Draft","INC",null,"TST 18"]
["TST-2015-0125","Collection of pre-conditions","Huawei Technologies Co., Ltd.","2015-07-12T06:50:37","Draft","INC",null,"TST 18"]
["TST-2015-0126","Rearangement_of_clause_7_of_TS0013","Huawei Technologies Co., Ltd.","2015-07-12T06:52:22","Draft","INC",null,"TST 18"]
["TST-2015-0127","Test_Description_Restructuring","Huawei Technologies Co., Ltd.","2015-07-12T06:54:34","Draft","INC",null,"TST 18"]
["TST-2015-0128","Test_Description_for_CRUDN","Huawei Technologies Co., Ltd.","2015-07-12T06:55:42","Draft","INC",null,"TST 18"]
["TST-2015-0129","Test_Description_for_NonBlockingRequest","Huawei Technologies Co., Ltd.","2015-07-12T06:56:33","Draft","INC",null,"TST 18"]
["TST-2015-0130","Test_Description_for_node","Huawei Technologies Co., Ltd.","2015-07-12T06:57:20","Draft","INC",null,"TST 18"]
["TST-2015-0131","TS-0013-No-Hop-Tests-Update","InterDigital","2015-07-12T16:51:02","Draft","INC",null,"TST 18"]
["TST-2015-0132","TS-0013-Group-FanoutPoint-Tests","InterDigital","2015-07-12T16:54:38","Draft","INC",null,"TST 18"]
["TST-2015-0133","TS-0013-Notification-Tests","InterDigital","2015-07-12T16:57:11","Draft","INC",null,"TST 18"]
["TST-2015-0134","TS-00015-Interop testing methodology","ETSI","2015-07-12T21:49:25","Draft","INC",null,"TST 18"]
["TST-2015-0135","TS-0013-Test Description proforma","ETSI","2015-07-12T22:20:01","Draft","INC",null,"TST 18"]
["TST-2015-0136","Test_Description_for_fanOutPoint","Huawei Technologies Co., Ltd.","2015-07-13T07:16:00","Draft","INC",null,"TST 18"]
["TST-2015-0137","Test_Description_for_mgmtObj","Huawei Technologies Co., Ltd.","2015-07-13T07:17:11","Draft","INC",null,"TST 18"]
["TST-2015-0138","TSS List and Test_Purposes_contributions","TTA","2015-07-13T09:32:22","Draft","INC",null,"TST 18"]
["TST-2015-0139","single_hop_CSEBase_mgmt","Mahdi Ben Alaya (LAAS-CNRS)","2015-07-13T17:27:44","Draft","CR",null,"TST 18"]
["TST-2015-0140","No_hop_remoteCSE_mgmt","Mahdi Ben Alaya (LAAS-CNRS)","2015-07-13T20:27:55","Draft","CR",null,"TST 18"]
["TST-2015-0141","oneM2M Wireshark Dissector","InterDigital","2015-07-14T22:09:00","Draft","INC",null,"TST 18"]
["TST-2015-0142","TS-0018 TSS&TP baseline v0.0.2","KETI","2015-07-15T11:30:18","Draft","INC",null,"TST 18"]
["TST-2015-0143","non blocking synch requests update","Mahdi Ben Alaya (LAAS-CNRS)","2015-07-15T20:27:11","Draft","CR",null,"TST 18"]
["TST-2015-0144","Non blocking asynch requests update","Mahdi Ben Alaya (LAAS-CNRS)","2015-07-16T17:48:21","Draft","CR",null,"TST 18"]
["TST-2015-0145","ICS-ICS Proforma Annex","KETI","2015-07-17T04:50:29","Draft","INC",null,"TST 18"]
["TST-2015-0146","High Prioritized Test Case List for oneM2M Test Event","TTA","2015-07-17T08:52:37","Draft","INC",null,"TST 18"]
["TST-2015-0145R01","ICS-ICS Proforma Annex","KETI","2015-07-17T09:50:57","Draft","INC",null,"TST 18"]
["TST-2015-0118","TST-18-Agenda","TST WG Chair","2015-07-17T12:43:15","Draft","AG",null,"TST 18"]
["TST-2015-0147","TS-0015-Clarification of conformance introduction clause","ETSI","2015-07-17T12:44:52","Draft","INC",null,"TST 18"]
["TST-2015-0117","TST_18_docs_allocation","TST WG Chair","2015-07-17T13:10:14","Draft","AG",null,"TST 18"]
["TST-2015-0118R01","TST-18-Agenda","TST WG Chair","2015-07-19T00:36:44","Draft","AG",null,"TST 18"]
["TST-2015-0117R01","TST_18_docs_allocation","TST WG Chair","2015-07-19T00:37:33","Draft","AG",null,"TST 18"]
["TST-2015-0149","Questions on certification","WG6 Chair","2015-07-19T23:14:28","Draft","INC",null,"TST 18"]
["TST-2015-0118R02","TST-18-Agenda","TST WG Chair","2015-07-19T23:16:22","Draft","AG",null,"TST 18"]
["TST-2015-0117R02","TST_18_docs_allocation","TST WG Chair","2015-07-19T23:16:54","Draft","AG",null,"TST 18"]
["TST-2015-0141R01","oneM2M Wireshark Dissector","InterDigital",null,"Draft","INC",null,"TST 18"]
["TST-2015-0119","draft TST WG progress report at TP18","TST WG Chair",null,"Draft","INC",null,"TST 18"]